[Event "Early-Titled-Tuesday-Blitz-March-19-2024"]
[Site "Chess.com"]
[Date "2024.03.19"]
[Round "9"]
[White "Dr_Pepper18"]
[Black "vladgoncharov"]
[Result "0-1"]
[WhiteElo "2420"]
[BlackElo "2611"]
[TimeControl "180+1"]
[EndTime "9:44:39 PDT"]
[Termination "vladgoncharov won by resignation"]

1. d4 {[%clk 0:03:00.9]} 1... Nf6 {[%clk 0:02:57.9]} 2. Nf3 {[%clk 0:03:00.9]}
2... e6 {[%clk 0:02:57.9]} 3. c4 {[%clk 0:03:01.3]} 3... d5 {[%clk 0:02:57.7]}
4. g3 {[%clk 0:03:01.8]} 4... c5 {[%clk 0:02:52.3]} 5. cxd5 {[%clk 0:03:01.5]}
5... exd5 {[%clk 0:02:24.8]} 6. Bg2 {[%clk 0:03:00.8]} 6... Nc6 {[%clk 0:02:24]}
7. O-O {[%clk 0:03:00.9]} 7... Be7 {[%clk 0:02:23.6]} 8. Nc3 {[%clk 0:03:00.1]}
8... c4 {[%clk 0:02:20.8]} 9. Ne5 {[%clk 0:02:58.7]} 9... O-O {[%clk 0:02:18.3]}
10. f4 {[%clk 0:02:58.6]} 10... Qb6 {[%clk 0:02:05.2]} 11. e3 {[%clk 0:02:54.8]}
11... Rd8 {[%clk 0:02:02.8]} 12. b3 {[%clk 0:02:51.1]} 12... cxb3 {[%clk
0:01:53.6]} 13. Qxb3 {[%clk 0:02:46.7]} 13... Qxb3 {[%clk 0:01:50.9]} 14. axb3
{[%clk 0:02:47.6]} 14... Nb4 {[%clk 0:01:50.8]} 15. Bd2 {[%clk 0:02:12.8]} 15...
Bf5 {[%clk 0:01:42.8]} 16. h3 {[%clk 0:01:55.2]} 16... h5 {[%clk 0:01:41.8]} 17.
Kh2 {[%clk 0:01:44.4]} 17... a5 {[%clk 0:01:35.5]} 18. Bf3 {[%clk 0:01:44.3]}
18... b6 {[%clk 0:01:16.4]} 19. g4 {[%clk 0:01:44.1]} 19... hxg4 {[%clk
0:01:16.2]} 20. hxg4 {[%clk 0:01:45]} 20... Bc2 {[%clk 0:01:12.5]} 21. g5 {[%clk
0:00:52.6]} 21... Ne4 {[%clk 0:01:08.8]} 22. Nxe4 {[%clk 0:00:52.9]} 22... dxe4
{[%clk 0:01:08.6]} 23. Bd1 {[%clk 0:00:52.7]} 23... Rac8 {[%clk 0:01:04.2]} 24.
Rc1 {[%clk 0:00:37.5]} 24... Bd3 {[%clk 0:00:57.7]} 25. Rg1 {[%clk 0:00:23.3]}
25... Rxc1 {[%clk 0:00:56.8]} 26. Bxc1 {[%clk 0:00:24.2]} 26... Rc8 {[%clk
0:00:56.9]} 27. Bd2 {[%clk 0:00:24.8]} 27... Bc2 {[%clk 0:00:51.1]} 28. Nc4
{[%clk 0:00:19.6]} 28... Bxd1 {[%clk 0:00:41.6]} 29. Rxd1 {[%clk 0:00:20.5]}
29... Nd3 {[%clk 0:00:35.1]} 30. Nxb6 {[%clk 0:00:18.6]} 30... Rc2 {[%clk
0:00:34.2]} 31. Nc4 {[%clk 0:00:18.4]} 31... a4 {[%clk 0:00:32.9]} 32. Kg1
{[%clk 0:00:06.7]} 32... axb3 {[%clk 0:00:32.4]} 33. Rb1 {[%clk 0:00:06.8]}
33... Rxc4 {[%clk 0:00:31.7]} 0-1

[Event "Early-Titled-Tuesday-Blitz-March-19-2024"]
[Site "Chess.com"]
[Date "2024.03.19"]
[Round "9"]
[White "Boundless_Strike"]
[Black "kassablanca"]
[Result "1-0"]
[WhiteElo "2641"]
[BlackElo "2758"]
[TimeControl "180+1"]
[EndTime "9:44:41 PDT"]
[Termination "Boundless_Strike won by resignation"]

1. d4 {[%clk 0:02:54.3]} 1... d5 {[%clk 0:02:57.9]} 2. e4 {[%clk 0:02:44.4]}
2... dxe4 {[%clk 0:02:56.6]} 3. Nc3 {[%clk 0:02:44.4]} 3... Nf6 {[%clk
0:02:56.6]} 4. f3 {[%clk 0:02:44.6]} 4... exf3 {[%clk 0:02:55.8]} 5. Nxf3 {[%clk
0:02:45.5]} 5... g6 {[%clk 0:02:54.7]} 6. Bf4 {[%clk 0:02:38.3]} 6... Bg7 {[%clk
0:02:54.4]} 7. Qd2 {[%clk 0:02:38.4]} 7... O-O {[%clk 0:02:54.5]} 8. O-O-O
{[%clk 0:02:38.7]} 8... Bg4 {[%clk 0:02:52]} 9. Be2 {[%clk 0:02:38.8]} 9... c6
{[%clk 0:02:39.3]} 10. h3 {[%clk 0:02:34]} 10... Bxf3 {[%clk 0:02:39.2]} 11.
Bxf3 {[%clk 0:02:34.4]} 11... e6 {[%clk 0:02:35.7]} 12. g4 {[%clk 0:02:26.8]}
12... Nd5 {[%clk 0:02:31.7]} 13. Be5 {[%clk 0:01:58.2]} 13... Nxc3 {[%clk
0:02:26.1]} 14. Qxc3 {[%clk 0:01:58]} 14... Bxe5 {[%clk 0:01:56.5]} 15. dxe5
{[%clk 0:01:58.2]} 15... Qh4 {[%clk 0:01:55.4]} 16. Kb1 {[%clk 0:01:37.2]} 16...
a5 {[%clk 0:01:44.5]} 17. Qb3 {[%clk 0:01:20.4]} 17... Qe7 {[%clk 0:01:42.1]}
18. a3 {[%clk 0:01:12.1]} 18... a4 {[%clk 0:01:36.6]} 19. Qc3 {[%clk 0:01:09.8]}
19... Nd7 {[%clk 0:01:32]} 20. h4 {[%clk 0:01:09.1]} 20... Rfd8 {[%clk
0:01:18.8]} 21. h5 {[%clk 0:01:05.3]} 21... Qg5 {[%clk 0:01:07.4]} 22. hxg6
{[%clk 0:01:02.2]} 22... hxg6 {[%clk 0:01:08.3]} 23. Rd2 {[%clk 0:00:25.8]}
23... Nb6 {[%clk 0:00:58.3]} 24. Rdh2 {[%clk 0:00:21.1]} 24... Kf8 {[%clk
0:00:34.4]} 25. Qc5+ {[%clk 0:00:19]} 25... Ke8 {[%clk 0:00:33.1]} 26. Qxb6
{[%clk 0:00:12.9]} 26... Rab8 {[%clk 0:00:32.3]} 27. Rh8+ {[%clk 0:00:10.7]}
27... Ke7 {[%clk 0:00:30.5]} 28. Qc5+ {[%clk 0:00:10.8]} 28... Kd7 {[%clk
0:00:30.5]} 29. Rd1+ {[%clk 0:00:10]} 29... Kc7 {[%clk 0:00:30.7]} 30. Qa5+
{[%clk 0:00:09.7]} 30... b6 {[%clk 0:00:29.6]} 31. Qa7+ {[%clk 0:00:09.6]} 31...
Rb7 {[%clk 0:00:29.8]} 32. Rhxd8 {[%clk 0:00:09.5]} 32... Qxd8 {[%clk 0:00:23]}
33. Qxb7+ {[%clk 0:00:08]} 1-0

[Event "Early-Titled-Tuesday-Blitz-March-19-2024"]
[Site "Chess.com"]
[Date "2024.03.19"]
[Round "9"]
[White "talaicito"]
[Black "nabukatnezarr"]
[Result "1-0"]
[WhiteElo "2327"]
[BlackElo "2567"]
[TimeControl "180+1"]
[EndTime "9:44:43 PDT"]
[Termination "talaicito won by resignation"]

1. d4 {[%clk 0:03:00.9]} 1... Nf6 {[%clk 0:02:50.7]} 2. Nc3 {[%clk 0:03:00.4]}
2... d5 {[%clk 0:02:50.2]} 3. Bf4 {[%clk 0:03:01]} 3... a6 {[%clk 0:02:44]} 4.
e3 {[%clk 0:03:01]} 4... Bg4 {[%clk 0:02:41]} 5. f3 {[%clk 0:02:59.5]} 5... Bh5
{[%clk 0:02:40.8]} 6. g4 {[%clk 0:02:59.7]} 6... Bg6 {[%clk 0:02:41]} 7. h4
{[%clk 0:03:00.3]} 7... h6 {[%clk 0:02:39]} 8. h5 {[%clk 0:03:00]} 8... Bh7
{[%clk 0:02:38.9]} 9. Bd3 {[%clk 0:03:00.9]} 9... Bxd3 {[%clk 0:02:38.2]} 10.
Qxd3 {[%clk 0:03:01.8]} 10... e6 {[%clk 0:02:38.4]} 11. Nge2 {[%clk 0:03:01.8]}
11... Nbd7 {[%clk 0:02:38.1]} 12. O-O-O {[%clk 0:02:57.4]} 12... c5 {[%clk
0:02:38.4]} 13. e4 {[%clk 0:02:57.5]} 13... cxd4 {[%clk 0:02:32.4]} 14. Nxd4
{[%clk 0:02:38.6]} 14... dxe4 {[%clk 0:02:14.7]} 15. Nxe4 {[%clk 0:02:34.8]}
15... Nxe4 {[%clk 0:02:13.4]} 16. Qxe4 {[%clk 0:02:27.8]} 16... Qc8 {[%clk
0:01:41.4]} 17. Nxe6 {[%clk 0:02:17.5]} 17... fxe6 {[%clk 0:01:27.9]} 18. Qxe6+
{[%clk 0:02:18.4]} 18... Kd8 {[%clk 0:01:24.7]} 19. Rxd7+ {[%clk 0:02:02]} 19...
Qxd7 {[%clk 0:01:25.6]} 20. Rd1 {[%clk 0:02:01.6]} 20... Qxd1+ {[%clk 0:01:26]}
21. Kxd1 {[%clk 0:02:01.8]} 21... Rc8 {[%clk 0:01:23.2]} 22. Qd5+ {[%clk
0:01:49.8]} 22... Ke8 {[%clk 0:01:23.1]} 23. Qxb7 {[%clk 0:01:49.9]} 23... Rd8+
{[%clk 0:01:23.5]} 24. Kc1 {[%clk 0:01:48]} 24... Be7 {[%clk 0:01:24.4]} 25.
Qxa6 {[%clk 0:01:34.4]} 25... Rf8 {[%clk 0:01:24.6]} 26. Bc7 {[%clk 0:01:25.8]}
26... Bg5+ {[%clk 0:00:44.6]} 27. f4 {[%clk 0:01:25.7]} 27... Rxf4 {[%clk
0:00:28.8]} 28. Qe6+ {[%clk 0:01:12.4]} 28... Kf8 {[%clk 0:00:24.8]} 29. Bd6+
{[%clk 0:01:05.7]} 29... Rxd6 {[%clk 0:00:23.3]} 30. Qxd6+ {[%clk 0:01:04.6]}
30... Kg8 {[%clk 0:00:23.8]} 31. Kd1 {[%clk 0:00:53.4]} 31... Rf2 {[%clk
0:00:18.3]} 32. a4 {[%clk 0:00:50.6]} 32... Bf6 {[%clk 0:00:11.4]} 33. a5 {[%clk
0:00:44.8]} 33... Rf1+ {[%clk 0:00:11.3]} 34. Ke2 {[%clk 0:00:44]} 34... Ra1
{[%clk 0:00:12.2]} 35. b4 {[%clk 0:00:41.4]} 35... Kh8 {[%clk 0:00:09.8]} 36. a6
{[%clk 0:00:38.1]} 36... Kh7 {[%clk 0:00:10.1]} 37. b5 {[%clk 0:00:37.2]} 37...
Ra5 {[%clk 0:00:10.3]} 38. b6 {[%clk 0:00:33.5]} 38... Rxa6 {[%clk 0:00:09.8]}
39. Qd3+ {[%clk 0:00:33]} 1-0

[Event "Early-Titled-Tuesday-Blitz-March-19-2024"]
[Site "Chess.com"]
[Date "2024.03.19"]
[Round "9"]
[White "SharapovEvgeny"]
[Black "Rurep26"]
[Result "0-1"]
[WhiteElo "2570"]
[BlackElo "2730"]
[TimeControl "180+1"]
[EndTime "9:44:44 PDT"]
[Termination "Rurep26 won by resignation"]

1. e4 {[%clk 0:03:00]} 1... e6 {[%clk 0:02:59.3]} 2. d4 {[%clk 0:02:59.8]} 2...
d5 {[%clk 0:02:59.8]} 3. Nc3 {[%clk 0:03:00.2]} 3... Bb4 {[%clk 0:02:59.9]} 4.
e5 {[%clk 0:03:00.3]} 4... c5 {[%clk 0:03:00.5]} 5. a3 {[%clk 0:03:00.3]} 5...
Bxc3+ {[%clk 0:03:01.1]} 6. bxc3 {[%clk 0:03:00.5]} 6... Qc7 {[%clk 0:03:02]} 7.
Nf3 {[%clk 0:03:00.5]} 7... b6 {[%clk 0:03:01.5]} 8. a4 {[%clk 0:03:00.1]} 8...
Ba6 {[%clk 0:03:01.8]} 9. Bb5+ {[%clk 0:02:59.5]} 9... Bxb5 {[%clk 0:03:01.7]}
10. axb5 {[%clk 0:02:59.4]} 10... a5 {[%clk 0:03:02.6]} 11. bxa6 {[%clk
0:02:59.2]} 11... Rxa6 {[%clk 0:03:02.4]} 12. Rxa6 {[%clk 0:02:58.5]} 12... Nxa6
{[%clk 0:03:03.3]} 13. O-O {[%clk 0:02:58.7]} 13... Ne7 {[%clk 0:03:02.6]} 14.
Bg5 {[%clk 0:02:51.1]} 14... Nc6 {[%clk 0:02:59.9]} 15. Qd3 {[%clk 0:02:47.5]}
15... Nab8 {[%clk 0:02:57.6]} 16. Qb5 {[%clk 0:02:43]} 16... Nd7 {[%clk
0:02:50.7]} 17. Ra1 {[%clk 0:02:36.7]} 17... O-O {[%clk 0:02:47.6]} 18. Be3
{[%clk 0:02:36.3]} 18... cxd4 {[%clk 0:02:40]} 19. cxd4 {[%clk 0:02:36]} 19...
Na5 {[%clk 0:02:31.1]} 20. Bd2 {[%clk 0:02:23.8]} 20... Nc6 {[%clk 0:02:18.9]}
21. h3 {[%clk 0:02:15.1]} 21... h6 {[%clk 0:02:17.7]} 22. c4 {[%clk 0:02:12.6]}
22... dxc4 {[%clk 0:02:14.9]} 23. Qxc4 {[%clk 0:02:12.5]} 23... Rc8 {[%clk
0:02:15.1]} 24. Rc1 {[%clk 0:02:11]} 24... Qb7 {[%clk 0:02:11.5]} 25. Qb3 {[%clk
0:02:00]} 25... Ne7 {[%clk 0:02:08.3]} 26. Rxc8+ {[%clk 0:01:56.6]} 26... Qxc8
{[%clk 0:02:09.2]} 27. Bb4 {[%clk 0:01:54.3]} 27... Nd5 {[%clk 0:02:07.1]} 28.
Bd6 {[%clk 0:01:51.8]} 28... Qc1+ {[%clk 0:02:00.9]} 29. Kh2 {[%clk 0:01:50.5]}
29... Qf4+ {[%clk 0:01:57.3]} 30. Kg1 {[%clk 0:01:50.4]} 30... Qc1+ {[%clk
0:01:45.3]} 31. Kh2 {[%clk 0:01:50.3]} 31... Qc6 {[%clk 0:01:31.5]} 32. Nd2
{[%clk 0:01:39.2]} 32... b5 {[%clk 0:01:23.9]} 33. f3 {[%clk 0:01:38.1]} 33...
N7b6 {[%clk 0:01:19.6]} 34. Ne4 {[%clk 0:01:36.4]} 34... b4 {[%clk 0:01:14]} 35.
Bc5 {[%clk 0:01:27.5]} 35... Qa4 {[%clk 0:01:06]} 36. Qb1 {[%clk 0:01:09.2]}
36... Nc4 {[%clk 0:00:59.2]} 37. Nd6 {[%clk 0:01:06.9]} 37... Nce3 {[%clk
0:00:50.7]} 38. f4 {[%clk 0:00:55.8]} 38... b3 {[%clk 0:00:48.6]} 39. f5 {[%clk
0:00:55.8]} 39... Qa2 {[%clk 0:00:44.8]} 40. Qe4 {[%clk 0:00:51.3]} 40... Qxg2+
{[%clk 0:00:33]} 41. Qxg2 {[%clk 0:00:51]} 41... Nxg2 {[%clk 0:00:33.9]} 42.
fxe6 {[%clk 0:00:51.4]} 42... fxe6 {[%clk 0:00:31.3]} 43. Nc4 {[%clk 0:00:45.6]}
43... Nge3 {[%clk 0:00:31.4]} 44. Nb2 {[%clk 0:00:44.9]} 44... Nc3 {[%clk
0:00:32]} 45. Kg3 {[%clk 0:00:38.6]} 45... Ncd1 {[%clk 0:00:29.7]} 46. Nc4
{[%clk 0:00:34.1]} 46... Nxc4 {[%clk 0:00:29]} 0-1

[Event "Early-Titled-Tuesday-Blitz-March-19-2024"]
[Site "Chess.com"]
[Date "2024.03.19"]
[Round "9"]
[White "Jojo_898"]
[Black "aistrel"]
[Result "0-1"]
[WhiteElo "2488"]
[BlackElo "2652"]
[TimeControl "180+1"]
[EndTime "9:44:44 PDT"]
[Termination "aistrel won by resignation"]

1. e4 {[%clk 0:03:00.9]} 1... c6 {[%clk 0:02:58.8]} 2. d4 {[%clk 0:03:00.5]}
2... d5 {[%clk 0:02:59.7]} 3. Nc3 {[%clk 0:03:00.2]} 3... dxe4 {[%clk
0:02:54.9]} 4. Nxe4 {[%clk 0:03:01.1]} 4... Nf6 {[%clk 0:02:55.5]} 5. Ng3 {[%clk
0:03:01.7]} 5... h5 {[%clk 0:02:55.2]} 6. h4 {[%clk 0:03:01.7]} 6... Bg4 {[%clk
0:02:54.4]} 7. Be2 {[%clk 0:03:01.5]} 7... Qc7 {[%clk 0:02:52.2]} 8. Bg5 {[%clk
0:02:55.5]} 8... Nbd7 {[%clk 0:02:50.3]} 9. Qd2 {[%clk 0:02:55.1]} 9... e6
{[%clk 0:02:49.4]} 10. Bf4 {[%clk 0:02:53.7]} 10... Bd6 {[%clk 0:02:48.7]} 11.
Bxd6 {[%clk 0:02:54.3]} 11... Qxd6 {[%clk 0:02:49.3]} 12. O-O-O {[%clk
0:02:54.6]} 12... O-O-O {[%clk 0:02:46.1]} 13. Nf3 {[%clk 0:02:53.3]} 13... Bxf3
{[%clk 0:02:29.1]} 14. Bxf3 {[%clk 0:02:52.8]} 14... g6 {[%clk 0:02:27]} 15. Kb1
{[%clk 0:02:42.7]} 15... e5 {[%clk 0:02:24.7]} 16. Qc3 {[%clk 0:02:31.9]} 16...
Rhe8 {[%clk 0:02:09.4]} 17. d5 {[%clk 0:02:15.7]} 17... e4 {[%clk 0:02:01.1]}
18. dxc6 {[%clk 0:02:08.6]} 18... Qxc6 {[%clk 0:02:02]} 19. Qxc6+ {[%clk
0:02:08.4]} 19... bxc6 {[%clk 0:02:02.4]} 20. Be2 {[%clk 0:02:09.1]} 20... Ne5
{[%clk 0:01:48.2]} 21. Rhe1 {[%clk 0:01:58.3]} 21... Kc7 {[%clk 0:01:43.2]} 22.
Kc1 {[%clk 0:01:49.2]} 22... Rd5 {[%clk 0:01:30.3]} 23. a3 {[%clk 0:01:27.8]}
23... Red8 {[%clk 0:01:24.1]} 24. c4 {[%clk 0:01:13.6]} 24... Rxd1+ {[%clk
0:01:17.8]} 25. Rxd1 {[%clk 0:01:14.5]} 25... Rxd1+ {[%clk 0:01:15.9]} 26. Kxd1
{[%clk 0:01:15.4]} 26... c5 {[%clk 0:01:16.3]} 27. Kd2 {[%clk 0:01:14.6]} 27...
a5 {[%clk 0:01:16.2]} 28. Ke3 {[%clk 0:01:10.6]} 28... Neg4+ {[%clk 0:01:12.6]}
29. Bxg4 {[%clk 0:01:08.9]} 29... Nxg4+ {[%clk 0:01:13.5]} 30. Kxe4 {[%clk
0:00:58.4]} 30... Nxf2+ {[%clk 0:01:13.4]} 31. Kd5 {[%clk 0:00:58.2]} 31... Nd3
{[%clk 0:01:14]} 32. Ne4 {[%clk 0:00:55.7]} 32... Nf4+ {[%clk 0:01:02.3]} 33.
Kxc5 {[%clk 0:00:50.2]} 33... Nxg2 {[%clk 0:01:03.2]} 34. b4 {[%clk 0:00:42]}
34... axb4 {[%clk 0:01:04.1]} 35. axb4 {[%clk 0:00:42.7]} 35... Nxh4 {[%clk
0:01:03.4]} 36. b5 {[%clk 0:00:43.4]} 36... Nf5 {[%clk 0:00:58]} 37. Ng5 {[%clk
0:00:42.4]} 37... h4 {[%clk 0:00:52.5]} 38. b6+ {[%clk 0:00:37.5]} 38... Kb7
{[%clk 0:00:48.7]} 39. Nxf7 {[%clk 0:00:33.5]} 39... h3 {[%clk 0:00:47.8]} 40.
Nd8+ {[%clk 0:00:34]} 40... Kc8 {[%clk 0:00:44.7]} 41. b7+ {[%clk 0:00:33.9]}
41... Kc7 {[%clk 0:00:41.8]} 42. Kb5 {[%clk 0:00:20.3]} 42... h2 {[%clk
0:00:41.4]} 43. Ka6 {[%clk 0:00:17.8]} 43... h1=Q {[%clk 0:00:41.2]} 44. Ne6+
{[%clk 0:00:17.1]} 44... Kb8 {[%clk 0:00:40.6]} 45. Nc5 {[%clk 0:00:16.8]} 45...
Qc6+ {[%clk 0:00:39.8]} 0-1

[Event "Early-Titled-Tuesday-Blitz-March-19-2024"]
[Site "Chess.com"]
[Date "2024.03.19"]
[Round "9"]
[White "MagnusCarlsen"]
[Black "AnishOnYoutube"]
[Result "1-0"]
[WhiteElo "3265"]
[BlackElo "3045"]
[TimeControl "180+1"]
[EndTime "9:44:46 PDT"]
[Termination "MagnusCarlsen won by resignation"]

1. g3 {[%clk 0:02:55.7]} 1... d5 {[%clk 0:02:59.3]} 2. d4 {[%clk 0:02:55.3]}
2... Nf6 {[%clk 0:02:59.3]} 3. Nf3 {[%clk 0:02:52.9]} 3... g6 {[%clk 0:02:59.3]}
4. Bg2 {[%clk 0:02:53]} 4... Bg7 {[%clk 0:02:59.8]} 5. O-O {[%clk 0:02:53.8]}
5... O-O {[%clk 0:03:00.3]} 6. b3 {[%clk 0:02:54.2]} 6... c5 {[%clk 0:02:58.4]}
7. Bb2 {[%clk 0:02:54.2]} 7... cxd4 {[%clk 0:02:56.2]} 8. Nxd4 {[%clk
0:02:54.4]} 8... e5 {[%clk 0:02:54.5]} 9. Nf3 {[%clk 0:02:54.7]} 9... e4 {[%clk
0:02:55]} 10. Nd4 {[%clk 0:02:55.5]} 10... Re8 {[%clk 0:02:47.9]} 11. e3 {[%clk
0:02:52.9]} 11... h5 {[%clk 0:02:34.6]} 12. c4 {[%clk 0:02:51.9]} 12... dxc4
{[%clk 0:02:30.8]} 13. bxc4 {[%clk 0:02:51.5]} 13... Nc6 {[%clk 0:02:25.1]} 14.
Nxc6 {[%clk 0:02:46.5]} 14... bxc6 {[%clk 0:02:25.2]} 15. Qxd8 {[%clk
0:02:47.3]} 15... Rxd8 {[%clk 0:02:25.8]} 16. Bd4 {[%clk 0:02:43.4]} 16... Bf5
{[%clk 0:02:24.8]} 17. Nc3 {[%clk 0:02:42.3]} 17... Re8 {[%clk 0:02:05.7]} 18.
Rfd1 {[%clk 0:02:38]} 18... a5 {[%clk 0:01:35.8]} 19. Rab1 {[%clk 0:02:37.7]}
19... Rac8 {[%clk 0:01:28.9]} 20. h3 {[%clk 0:02:35.1]} 20... Nd7 {[%clk
0:01:17.2]} 21. Rb7 {[%clk 0:02:23.1]} 21... Bxd4 {[%clk 0:01:02.8]} 22. exd4
{[%clk 0:02:23.3]} 22... Nf6 {[%clk 0:00:54.4]} 23. Ra7 {[%clk 0:02:02.1]} 23...
e3 {[%clk 0:00:35.6]} 24. Rxa5 {[%clk 0:01:47.1]} 24... Rb8 {[%clk 0:00:36.1]}
25. Re5 {[%clk 0:01:19.7]} 25... exf2+ {[%clk 0:00:36.3]} 26. Kxf2 {[%clk
0:01:19.2]} 26... Rxe5 {[%clk 0:00:32.6]} 27. dxe5 {[%clk 0:01:19.2]} 27... Rb2+
{[%clk 0:00:32.4]} 28. Kg1 {[%clk 0:01:13]} 28... Nd7 {[%clk 0:00:31.3]} 29. Re1
{[%clk 0:01:11]} 29... Rc2 {[%clk 0:00:29.1]} 30. Ne4 {[%clk 0:01:11]} 30...
Bxe4 {[%clk 0:00:20.4]} 31. Rxe4 {[%clk 0:01:08.8]} 31... Rxa2 {[%clk 0:00:15]}
32. e6 {[%clk 0:01:08]} 32... fxe6 {[%clk 0:00:08.8]} 33. Rxe6 {[%clk
0:01:08.9]} 33... Kf7 {[%clk 0:00:05.9]} 34. Rxc6 {[%clk 0:01:09.1]} 34... Ra1+
{[%clk 0:00:06.5]} 35. Kh2 {[%clk 0:01:09]} 35... Ra2 {[%clk 0:00:07.1]} 36. Kg1
{[%clk 0:00:49.6]} 36... Ra1+ {[%clk 0:00:07.1]} 37. Bf1 {[%clk 0:00:48.5]}
37... Ne5 {[%clk 0:00:07.2]} 38. Rc7+ {[%clk 0:00:48.1]} 38... Ke6 {[%clk
0:00:06.7]} 39. Kf2 {[%clk 0:00:48.9]} 39... Ra2+ {[%clk 0:00:05.1]} 40. Be2
{[%clk 0:00:48.8]} 40... Kf5 {[%clk 0:00:02.6]} 41. Ke3 {[%clk 0:00:44.4]} 41...
Ra3+ {[%clk 0:00:01.5]} 42. Kd4 {[%clk 0:00:44.8]} 42... Rxg3 {[%clk 0:00:01.6]}
43. Rc5 {[%clk 0:00:44.1]} 43... Rxh3 {[%clk 0:00:01.8]} 44. Rxe5+ {[%clk
0:00:44.2]} 44... Kf6 {[%clk 0:00:02.7]} 45. c5 {[%clk 0:00:43.2]} 1-0

[Event "Early-Titled-Tuesday-Blitz-March-19-2024"]
[Site "Chess.com"]
[Date "2024.03.19"]
[Round "9"]
[White "adotand"]
[Black "the_chess_child"]
[Result "1-0"]
[WhiteElo "3005"]
[BlackElo "2868"]
[TimeControl "180+1"]
[EndTime "9:44:47 PDT"]
[Termination "adotand won by checkmate"]

1. e4 {[%clk 0:02:57.7]} 1... c5 {[%clk 0:02:56.4]} 2. Nf3 {[%clk 0:02:57.5]}
2... e6 {[%clk 0:02:54.3]} 3. d4 {[%clk 0:02:57.3]} 3... cxd4 {[%clk 0:02:55.2]}
4. Nxd4 {[%clk 0:02:58.2]} 4... Nf6 {[%clk 0:02:55.8]} 5. Nc3 {[%clk 0:02:58.4]}
5... Nc6 {[%clk 0:02:56.4]} 6. a3 {[%clk 0:02:58.3]} 6... d6 {[%clk 0:02:55.1]}
7. Be3 {[%clk 0:02:58.5]} 7... Be7 {[%clk 0:02:54.9]} 8. Qe2 {[%clk 0:02:58.2]}
8... O-O {[%clk 0:02:54.1]} 9. O-O-O {[%clk 0:02:58.8]} 9... a6 {[%clk 0:02:52]}
10. Rg1 {[%clk 0:02:59.1]} 10... Qc7 {[%clk 0:02:50.6]} 11. g4 {[%clk
0:02:57.8]} 11... Nxd4 {[%clk 0:02:42.9]} 12. Bxd4 {[%clk 0:02:58]} 12... b5
{[%clk 0:02:43.1]} 13. g5 {[%clk 0:02:55.3]} 13... Nd7 {[%clk 0:02:41.7]} 14.
Kb1 {[%clk 0:02:55.8]} 14... Rb8 {[%clk 0:02:41.5]} 15. Rg3 {[%clk 0:02:50.7]}
15... Ne5 {[%clk 0:02:32]} 16. Qh5 {[%clk 0:02:44.1]} 16... b4 {[%clk
0:02:02.5]} 17. axb4 {[%clk 0:02:41.6]} 17... Rxb4 {[%clk 0:02:03.3]} 18. Rh3
{[%clk 0:02:36.6]} 18... h6 {[%clk 0:02:03]} 19. gxh6 {[%clk 0:02:36.8]} 19...
g6 {[%clk 0:02:00]} 20. h7+ {[%clk 0:02:36.9]} 20... Kh8 {[%clk 0:02:00.2]} 21.
Qh6 {[%clk 0:02:25.4]} 21... Rd8 {[%clk 0:01:49.5]} 22. Be2 {[%clk 0:02:13.6]}
22... Bf6 {[%clk 0:01:46.3]} 23. Qe3 {[%clk 0:01:43.6]} 23... Rxd4 {[%clk
0:01:26]} 24. Qxd4 {[%clk 0:01:40.8]} 24... Bg7 {[%clk 0:01:21.4]} 25. f4 {[%clk
0:01:36.1]} 25... Nc6 {[%clk 0:01:14.8]} 26. Qd2 {[%clk 0:01:36.3]} 26... e5
{[%clk 0:01:10.9]} 27. Nd5 {[%clk 0:01:32.8]} 27... Qa7 {[%clk 0:01:10.6]} 28.
f5 {[%clk 0:01:24.9]} 28... gxf5 {[%clk 0:01:00]} 29. exf5 {[%clk 0:01:25.3]}
29... Bxf5 {[%clk 0:00:59.3]} 30. Rg3 {[%clk 0:01:25.8]} 30... Bg6 {[%clk
0:00:46.1]} 31. h4 {[%clk 0:00:57.2]} 31... Rb8 {[%clk 0:00:25.9]} 32. h5 {[%clk
0:00:41.1]} 32... Qb7 {[%clk 0:00:19.1]} 33. Qc1 {[%clk 0:00:36.4]} 33... e4
{[%clk 0:00:17.9]} 34. Nc3 {[%clk 0:00:36.1]} 34... Be5 {[%clk 0:00:15.3]} 35.
hxg6 {[%clk 0:00:32.6]} 35... Bxg3 {[%clk 0:00:15.5]} 36. g7+ {[%clk 0:00:32.9]}
36... Kxh7 {[%clk 0:00:16]} 37. Rh1+ {[%clk 0:00:32.2]} 37... Kg8 {[%clk
0:00:15.3]} 38. Rh8+ {[%clk 0:00:30.7]} 38... Kxg7 {[%clk 0:00:15.8]} 39. Qh6#
{[%clk 0:00:31.5]} 1-0

[Event "Early-Titled-Tuesday-Blitz-March-19-2024"]
[Site "Chess.com"]
[Date "2024.03.19"]
[Round "9"]
[White "Saxar85"]
[Black "Barmen_EV"]
[Result "1-0"]
[WhiteElo "2733"]
[BlackElo "2572"]
[TimeControl "180+1"]
[EndTime "9:44:48 PDT"]
[Termination "Saxar85 won by resignation"]

1. e4 {[%clk 0:02:58.4]} 1... c5 {[%clk 0:02:59.1]} 2. Nf3 {[%clk 0:02:57.7]}
2... Nc6 {[%clk 0:02:59.6]} 3. d4 {[%clk 0:02:56.6]} 3... cxd4 {[%clk
0:03:00.5]} 4. Nxd4 {[%clk 0:02:55.6]} 4... e5 {[%clk 0:03:00.8]} 5. Nb5 {[%clk
0:02:54.7]} 5... d6 {[%clk 0:03:01]} 6. c4 {[%clk 0:02:51.5]} 6... Be6 {[%clk
0:02:59.5]} 7. N1c3 {[%clk 0:02:49.2]} 7... a6 {[%clk 0:02:59]} 8. Na3 {[%clk
0:02:48.6]} 8... Nf6 {[%clk 0:02:59.6]} 9. Nc2 {[%clk 0:02:39.1]} 9... g6 {[%clk
0:02:59.1]} 10. Be2 {[%clk 0:02:38.8]} 10... Bg7 {[%clk 0:02:59.5]} 11. O-O
{[%clk 0:02:38.5]} 11... O-O {[%clk 0:03:00.2]} 12. Be3 {[%clk 0:02:35.7]} 12...
Rc8 {[%clk 0:03:00.3]} 13. Rc1 {[%clk 0:02:34.7]} 13... Qa5 {[%clk 0:02:42.9]}
14. Qd2 {[%clk 0:02:29.1]} 14... Rfd8 {[%clk 0:02:41.6]} 15. Rfd1 {[%clk
0:02:27.9]} 15... Rd7 {[%clk 0:01:54.2]} 16. f3 {[%clk 0:02:09.9]} 16... Nb4
{[%clk 0:01:36.1]} 17. Nd5 {[%clk 0:02:04.8]} 17... Bxd5 {[%clk 0:00:34.3]} 18.
exd5 {[%clk 0:01:59]} 18... Nxc2 {[%clk 0:00:33.6]} 19. Qxa5 {[%clk 0:01:54.4]}
19... Nxe3 {[%clk 0:00:34.1]} 20. Re1 {[%clk 0:01:42.5]} 20... Bh6 {[%clk
0:00:26.7]} 21. c5 {[%clk 0:01:37.8]} 21... Nexd5 {[%clk 0:00:22.8]} 22. c6
{[%clk 0:01:31.5]} 22... bxc6 {[%clk 0:00:20]} 23. Qxa6 {[%clk 0:01:28.2]} 23...
Rdc7 {[%clk 0:00:19.7]} 24. Rcd1 {[%clk 0:01:20.4]} 24... e4 {[%clk 0:00:12.9]}
25. Bc4 {[%clk 0:01:16.6]} 25... exf3 {[%clk 0:00:11.2]} 26. gxf3 {[%clk
0:01:16.2]} 26... Ne3 {[%clk 0:00:09.4]} 27. Rxd6 {[%clk 0:01:11.8]} 27... Nfd5
{[%clk 0:00:04.5]} 28. Rd7 {[%clk 0:00:56.9]} 28... Bf4 {[%clk 0:00:02.6]} 29.
Rxc7 {[%clk 0:00:53.5]} 29... Rxc7 {[%clk 0:00:02.8]} 30. Bxd5 {[%clk
0:00:45.2]} 30... cxd5 {[%clk 0:00:03.7]} 31. Qf6 {[%clk 0:00:44.3]} 31... Rc4
{[%clk 0:00:02.6]} 32. b3 {[%clk 0:00:41.8]} 32... Rb4 {[%clk 0:00:02.2]} 33. a3
{[%clk 0:00:40.4]} 33... Rxb3 {[%clk 0:00:01.9]} 34. Qxf4 {[%clk 0:00:39.5]}
34... Nf5 {[%clk 0:00:02.8]} 35. a4 {[%clk 0:00:36.3]} 35... Rb2 {[%clk
0:00:02.9]} 36. Re8+ {[%clk 0:00:33.9]} 36... Kg7 {[%clk 0:00:03.4]} 37. Qe5+
{[%clk 0:00:33.7]} 37... f6 {[%clk 0:00:02.4]} 38. Qxb2 {[%clk 0:00:33]} 38...
Kf7 {[%clk 0:00:03.1]} 39. Rc8 {[%clk 0:00:31.9]} 39... Nd4 {[%clk 0:00:04]} 40.
Qxd4 {[%clk 0:00:31]} 40... f5 {[%clk 0:00:04.9]} 1-0